[Event "Titled Tuesday Blitz May 9 Early 2023"]
[White "Ankerst, Mihael"]
[Black "Srihari L R"]
[WhiteFideId "14602369"]
[BlackFideId "46617116"]
[WhiteElo "2324"]
[BlackElo "2334"]
[Result "0-1"]
[Round "02"]
[TimeControl "180+2"]
[Date "2023.05.09"]
[WhiteClock "0:00:00"]
[BlackClock "0:00:16"]

1. e4 {[%clk 0:02:55]}  c5 {[%clk 0:02:56]} 2. Nf3 {[%clk 0:02:55]}  e6 {[%clk 0:02:57]} 3. d4 {[%clk 0:02:55]}  cxd4 {[%clk 0:02:58]} 4. Nxd4 {[%clk 0:02:56]}  a6 {[%clk 0:02:58]} 5. c4 {[%clk 0:02:56]}  Nf6 {[%clk 0:02:57]} 6. Nc3 {[%clk 0:02:56]}  Qc7 {[%clk 0:02:56]} 7. Be2 {[%clk 0:02:56]}  Nc6 {[%clk 0:02:51]} 8. O-O {[%clk 0:02:54]}  Nxd4 {[%clk 0:02:51]} 9. Qxd4 {[%clk 0:02:54]}  Bd6 {[%clk 0:02:50]} 10. g3 {[%clk 0:02:51]}  h5 {[%clk 0:02:44]} 11. Bg5 {[%clk 0:02:48]}  Be5 {[%clk 0:02:36]} 12. Qd2 {[%clk 0:02:47]}  h4 {[%clk 0:02:30]} 13. f4 {[%clk 0:02:40]}  Bxc3 {[%clk 0:02:23]} 14. Qxc3 {[%clk 0:02:40]}  Qc5+ {[%clk 0:02:12]} 15. Kg2 {[%clk 0:02:38]}  hxg3 {[%clk 0:02:11]} 16. hxg3 {[%clk 0:02:36]}  Nxe4 {[%clk 0:02:05]} 17. Qxg7 {[%clk 0:02:34]}  Qf8 {[%clk 0:02:05]} 18. Qxf8+ {[%clk 0:02:20]}  Rxf8 {[%clk 0:02:04]} 19. Bh4 {[%clk 0:02:16]}  b6 {[%clk 0:01:44]} 20. Rad1 {[%clk 0:02:08]}  Bb7 {[%clk 0:01:41]} 21. Bf3 {[%clk 0:02:08]}  Rh8 {[%clk 0:01:24]} 22. Rd4 {[%clk 0:01:36]}  f5 {[%clk 0:01:14]} 23. Rfd1 {[%clk 0:01:35]}  Bc6 {[%clk 0:00:52]} 24. b3 {[%clk 0:01:34]}  Kf7 {[%clk 0:00:50]} 25. Rxd7+ {[%clk 0:01:00]}  Bxd7 {[%clk 0:00:48]} 26. Rxd7+ {[%clk 0:01:01]}  Kg6 {[%clk 0:00:48]} 27. Bxe4 {[%clk 0:01:00]}  fxe4 {[%clk 0:00:47]} 28. Rd6 {[%clk 0:00:57]}  Kf5 {[%clk 0:00:39]} 29. Rxb6 {[%clk 0:00:55]}  Ra7 {[%clk 0:00:31]} 30. Rd6 {[%clk 0:00:52]}  Rhh7 {[%clk 0:00:31]} 31. Rd2 {[%clk 0:00:24]}  Rhd7 {[%clk 0:00:29]} 32. Re2 {[%clk 0:00:24]}  Rd3 {[%clk 0:00:26]} 33. Kh3 {[%clk 0:00:14]}  Rad7 {[%clk 0:00:22]} 34. Bg5 {[%clk 0:00:13]}  e5 {[%clk 0:00:17]} 35. Re1 {[%clk 0:00:00]}  Rh7+ {[%clk 0:00:16]} 0-1


[Site "https://www.chess.com"]

[Event "Titled Tuesday Blitz May 9 Early 2023"]
[White "Alahakoon, Isuru"]
[Black "Matinian, Nikita"]
[WhiteFideId "9900993"]
[BlackFideId "24129100"]
[WhiteElo "1953"]
[BlackElo "2422"]
[Result "1-0"]
[Round "02"]
[TimeControl "180+2"]
[Date "2023.05.09"]
[WhiteClock "0:00:11"]
[BlackClock "0:00:03"]

1. Nf3 {[%clk 0:03:00]}  Nf6 {[%clk 0:02:59]} 2. d4 {[%clk 0:03:00]}  g6 {[%clk 0:02:57]} 3. Nc3 {[%clk 0:02:59]}  d5 {[%clk 0:02:57]} 4. Bf4 {[%clk 0:02:59]}  c6 {[%clk 0:02:57]} 5. e3 {[%clk 0:02:58]}  Bg7 {[%clk 0:02:57]} 6. h4 {[%clk 0:02:57]}  Bg4 {[%clk 0:02:56]} 7. Be2 {[%clk 0:02:56]}  Nbd7 {[%clk 0:02:55]} 8. Qd2 {[%clk 0:02:50]}  b5 {[%clk 0:02:46]} 9. Ne5 {[%clk 0:02:46]}  Bxe2 {[%clk 0:02:41]} 10. Nxe2 {[%clk 0:02:47]}  Nxe5 {[%clk 0:02:25]} 11. Bxe5 {[%clk 0:02:48]}  Ne4 {[%clk 0:02:24]} 12. Qd3 {[%clk 0:02:34]}  Bxe5 {[%clk 0:02:20]} 13. dxe5 {[%clk 0:02:35]}  Qc7 {[%clk 0:02:09]} 14. f3 {[%clk 0:02:17]}  Nc5 {[%clk 0:02:07]} 15. Qc3 {[%clk 0:02:16]}  Ne6 {[%clk 0:02:03]} 16. O-O-O {[%clk 0:02:13]}  b4 {[%clk 0:01:57]} 17. Qxb4 {[%clk 0:02:00]}  Qxe5 {[%clk 0:01:55]} 18. Qc3 {[%clk 0:02:00]}  Qxc3 {[%clk 0:01:54]} 19. Nxc3 {[%clk 0:02:01]}  h5 {[%clk 0:01:46]} 20. e4 {[%clk 0:02:00]}  d4 {[%clk 0:01:43]} 21. Ne2 {[%clk 0:02:00]}  c5 {[%clk 0:01:42]} 22. c3 {[%clk 0:02:00]}  Rd8 {[%clk 0:01:39]} 23. cxd4 {[%clk 0:01:59]}  cxd4 {[%clk 0:01:39]} 24. Rd3 {[%clk 0:01:52]}  O-O {[%clk 0:01:05]} 25. Rhd1 {[%clk 0:01:51]}  Rd6 {[%clk 0:01:02]} 26. Nxd4 {[%clk 0:01:21]}  Nf4 {[%clk 0:01:02]} 27. R3d2 {[%clk 0:01:21]}  Rc8+ {[%clk 0:00:30]} 28. Kb1 {[%clk 0:01:19]}  Rcd8 {[%clk 0:00:28]} 29. g3 {[%clk 0:01:03]}  Nh3 {[%clk 0:00:27]} 30. Nb3 {[%clk 0:00:57]}  Rxd2 {[%clk 0:00:27]} 31. Rxd2 {[%clk 0:00:58]}  Rxd2 {[%clk 0:00:25]} 32. Nxd2 {[%clk 0:00:58]}  f5 {[%clk 0:00:23]} 33. e5 {[%clk 0:00:44]}  f4 {[%clk 0:00:22]} 34. gxf4 {[%clk 0:00:38]}  Nxf4 {[%clk 0:00:23]} 35. b4 {[%clk 0:00:29]}  Ng2 {[%clk 0:00:22]} 36. a4 {[%clk 0:00:24]}  Kf8 {[%clk 0:00:22]} 37. b5 {[%clk 0:00:24]}  Ke8 {[%clk 0:00:22]} 38. Kc2 {[%clk 0:00:19]}  Nxh4 {[%clk 0:00:22]} 39. Kd3 {[%clk 0:00:19]}  Nf5 {[%clk 0:00:20]} 40. Ke4 {[%clk 0:00:19]}  Kd7 {[%clk 0:00:17]} 41. Kf4 {[%clk 0:00:19]}  e6 {[%clk 0:00:10]} 42. Ne4 {[%clk 0:00:18]}  Kc7 {[%clk 0:00:09]} 43. Ng5 {[%clk 0:00:17]}  Nd4 {[%clk 0:00:09]} 44. Ke4 {[%clk 0:00:16]}  Ne2 {[%clk 0:00:09]} 45. Nxe6+ {[%clk 0:00:16]}  Kc8 {[%clk 0:00:09]} 46. Nd4 {[%clk 0:00:15]}  Nc3+ {[%clk 0:00:08]} 47. Kf4 {[%clk 0:00:14]}  Nxa4 {[%clk 0:00:09]} 48. Kg5 {[%clk 0:00:14]}  Nc5 {[%clk 0:00:06]} 49. e6 {[%clk 0:00:07]}  Kd8 {[%clk 0:00:04]} 50. f4 {[%clk 0:00:07]}  Ke7 {[%clk 0:00:04]} 51. f5 {[%clk 0:00:07]}  gxf5 {[%clk 0:00:04]} 52. Kxf5 {[%clk 0:00:08]}  h4 {[%clk 0:00:04]} 53. Ke5 {[%clk 0:00:07]}  h3 {[%clk 0:00:04]} 54. Nf5+ {[%clk 0:00:07]}  Ke8 {[%clk 0:00:04]} 55. Kd6 {[%clk 0:00:05]}  h2 {[%clk 0:00:04]} 56. Ng3 {[%clk 0:00:04]}  Ne4+ {[%clk 0:00:04]} 57. Nxe4 {[%clk 0:00:05]}  h1=Q {[%clk 0:00:04]} 58. Nf6+ {[%clk 0:00:06]}  Kf8 {[%clk 0:00:02]} 59. e7+ {[%clk 0:00:07]}  Kf7 {[%clk 0:00:03]} 60. e8=Q+ {[%clk 0:00:07]}  Kxf6 {[%clk 0:00:04]} 61. Qf8+ {[%clk 0:00:07]}  Kg6 {[%clk 0:00:04]} 62. Qg8+ {[%clk 0:00:07]}  Kf6 {[%clk 0:00:04]} 63. Qe6+ {[%clk 0:00:07]}  Kg5 {[%clk 0:00:04]} 64. Qd5+ {[%clk 0:00:07]}  Qxd5+ {[%clk 0:00:03]} 65. Kxd5 {[%clk 0:00:08]}  Kf6 {[%clk 0:00:04]} 66. Kc6 {[%clk 0:00:09]}  Ke5 {[%clk 0:00:05]} 67. Kb7 {[%clk 0:00:10]}  Kd6 {[%clk 0:00:03]} 68. Kxa7 {[%clk 0:00:11]} 1-0


[Site "https://www.chess.com"]

[Event "Titled Tuesday Blitz May 9 Early 2023"]
[White "Di Nicolantonio, Lucas"]
[Black "Delorme, Alban"]
[WhiteFideId "680460"]
[BlackFideId "623636"]
[WhiteElo "2358"]
[BlackElo "2196"]
[Result "0-1"]
[Round "02"]
[TimeControl "180+2"]
[Date "2023.05.09"]
[WhiteClock "0:00:00"]
[BlackClock "0:01:56"]

1. Nf3 {[%clk 0:03:00]}  Nf6 {[%clk 0:03:00]} 2. c4 {[%clk 0:03:00]}  g6 {[%clk 0:03:00]} 3. Nc3 {[%clk 0:03:01]}  Bg7 {[%clk 0:03:00]} 4. g3 {[%clk 0:03:01]}  d6 {[%clk 0:03:01]} 5. Bg2 {[%clk 0:03:01]}  O-O {[%clk 0:03:02]} 6. O-O {[%clk 0:03:02]}  c5 {[%clk 0:03:02]} 7. d4 {[%clk 0:03:02]}  cxd4 {[%clk 0:03:02]} 8. Nxd4 {[%clk 0:03:01]}  Nc6 {[%clk 0:03:02]} 9. Nxc6 {[%clk 0:02:57]}  bxc6 {[%clk 0:03:03]} 10. Bxc6 {[%clk 0:02:57]}  Rb8 {[%clk 0:03:04]} 11. Bg2 {[%clk 0:02:56]}  Qa5 {[%clk 0:03:04]} 12. e4 {[%clk 0:02:07]}  Ba6 {[%clk 0:03:00]} 13. Qd3 {[%clk 0:01:48]}  Nd7 {[%clk 0:02:59]} 14. Nd5 {[%clk 0:01:43]}  Rfe8 {[%clk 0:02:47]} 15. Bd2 {[%clk 0:01:43]}  Qd8 {[%clk 0:02:41]} 16. b3 {[%clk 0:01:38]}  Nc5 {[%clk 0:02:38]} 17. Qe3 {[%clk 0:01:33]}  e6 {[%clk 0:02:38]} 18. Nb4 {[%clk 0:01:27]}  Bb7 {[%clk 0:02:33]} 19. Rad1 {[%clk 0:01:23]}  Qe7 {[%clk 0:02:29]} 20. Rfe1 {[%clk 0:01:18]}  a5 {[%clk 0:02:25]} 21. Nd3 {[%clk 0:01:17]}  Nxd3 {[%clk 0:02:25]} 22. Qxd3 {[%clk 0:01:18]}  a4 {[%clk 0:02:25]} 23. Bc3 {[%clk 0:01:10]}  axb3 {[%clk 0:02:23]} 24. axb3 {[%clk 0:01:11]}  Red8 {[%clk 0:02:19]} 25. Bxg7 {[%clk 0:01:10]}  Kxg7 {[%clk 0:02:20]} 26. Qc3+ {[%clk 0:01:01]}  e5 {[%clk 0:02:20]} 27. h4 {[%clk 0:00:51]}  Kg8 {[%clk 0:02:19]} 28. Qe3 {[%clk 0:00:47]}  Bc6 {[%clk 0:02:18]} 29. Rd3 {[%clk 0:00:44]}  Bd7 {[%clk 0:02:17]} 30. Red1 {[%clk 0:00:43]}  Be6 {[%clk 0:02:17]} 31. Qd2 {[%clk 0:00:42]}  Rb6 {[%clk 0:02:17]} 32. c5 {[%clk 0:00:42]}  Rxb3 {[%clk 0:02:15]} 33. cxd6 {[%clk 0:00:40]}  Qb7 {[%clk 0:02:07]} 34. Qg5 {[%clk 0:00:36]}  Rd7 {[%clk 0:02:01]} 35. Qxe5 {[%clk 0:00:17]}  Rxd3 {[%clk 0:02:01]} 36. Rxd3 {[%clk 0:00:18]}  Qb1+ {[%clk 0:02:01]} 37. Bf1 {[%clk 0:00:18]}  Bh3 {[%clk 0:01:57]} 38. Qe8+ {[%clk 0:00:15]}  Kg7 {[%clk 0:01:57]} 39. Qe5+ {[%clk 0:00:00]}  f6 {[%clk 0:01:56]} 0-1


[Site "https://www.chess.com"]

[Event "Titled Tuesday Blitz May 9 Early 2023"]
[White "Nissinen, Niilo Man"]
[Black "Lewicki, Miroslaw"]
[WhiteFideId "30950767"]
[BlackFideId "1113380"]
[WhiteElo "1952"]
[BlackElo "2212"]
[Result "1-0"]
[Round "02"]
[TimeControl "180+2"]
[Date "2023.05.09"]
[WhiteClock "0:00:12"]
[BlackClock "0:00:00"]

1. e4 {[%clk 0:03:00]}  c5 {[%clk 0:02:54]} 2. Nf3 {[%clk 0:03:00]}  d6 {[%clk 0:02:54]} 3. d4 {[%clk 0:03:00]}  cxd4 {[%clk 0:02:55]} 4. Nxd4 {[%clk 0:03:01]}  Nf6 {[%clk 0:02:56]} 5. Nc3 {[%clk 0:03:01]}  g6 {[%clk 0:02:55]} 6. Be3 {[%clk 0:02:55]}  Bg7 {[%clk 0:02:56]} 7. f3 {[%clk 0:02:54]}  O-O {[%clk 0:02:55]} 8. Qd2 {[%clk 0:02:52]}  Nc6 {[%clk 0:02:55]} 9. O-O-O {[%clk 0:02:47]}  Nxd4 {[%clk 0:02:52]} 10. Bxd4 {[%clk 0:02:45]}  Be6 {[%clk 0:02:53]} 11. h4 {[%clk 0:02:43]}  a6 {[%clk 0:02:33]} 12. h5 {[%clk 0:02:30]}  b5 {[%clk 0:02:25]} 13. Kb1 {[%clk 0:02:19]}  Rc8 {[%clk 0:02:19]} 14. Ne2 {[%clk 0:02:18]}  Qc7 {[%clk 0:02:10]} 15. Nf4 {[%clk 0:02:17]}  Bc4 {[%clk 0:02:08]} 16. Bxc4 {[%clk 0:01:35]}  Qxc4 {[%clk 0:02:03]} 17. Bxf6 {[%clk 0:01:35]}  exf6 {[%clk 0:01:53]} 18. Nd5 {[%clk 0:01:34]}  Rce8 {[%clk 0:01:37]} 19. Nb6 {[%clk 0:01:04]}  Qc7 {[%clk 0:01:27]} 20. Qxd6 {[%clk 0:01:04]}  Qa7 {[%clk 0:01:01]} 21. h6 {[%clk 0:00:47]}  Re6 {[%clk 0:00:26]} 22. hxg7 {[%clk 0:00:37]}  Rfe8 {[%clk 0:00:10]} 23. Qh2 {[%clk 0:00:34]}  h5 {[%clk 0:00:10]} 24. Nd5 {[%clk 0:00:33]}  Kxg7 {[%clk 0:00:11]} 25. Nc7 {[%clk 0:00:32]}  Qe3 {[%clk 0:00:05]} 26. Nxe8+ {[%clk 0:00:30]}  Rxe8 {[%clk 0:00:05]} 27. Rde1 {[%clk 0:00:24]}  Qc5 {[%clk 0:00:05]} 28. Qg1 {[%clk 0:00:22]}  Qc4 {[%clk 0:00:05]} 29. g4 {[%clk 0:00:22]}  Rc8 {[%clk 0:00:04]} 30. Qg2 {[%clk 0:00:21]}  Qb4 {[%clk 0:00:01]} 31. gxh5 {[%clk 0:00:18]}  g5 {[%clk 0:00:02]} 32. f4 {[%clk 0:00:18]}  Kh6 {[%clk 0:00:02]} 33. fxg5+ {[%clk 0:00:17]}  fxg5 {[%clk 0:00:03]} 34. Qf2 {[%clk 0:00:17]}  Qe7 {[%clk 0:00:03]} 35. e5 {[%clk 0:00:17]}  Rc4 {[%clk 0:00:03]} 36. Qf6+ {[%clk 0:00:17]}  Qxf6 {[%clk 0:00:02]} 37. exf6 {[%clk 0:00:18]}  Rf4 {[%clk 0:00:03]} 38. Ref1 {[%clk 0:00:17]}  Re4 {[%clk 0:00:03]} 39. c3 {[%clk 0:00:16]}  g4 {[%clk 0:00:03]} 40. Kc2 {[%clk 0:00:14]}  Re2+ {[%clk 0:00:03]} 41. Kb3 {[%clk 0:00:14]}  a5 {[%clk 0:00:03]} 42. Rf5 {[%clk 0:00:13]}  a4+ {[%clk 0:00:04]} 43. Ka3 {[%clk 0:00:13]}  g3 {[%clk 0:00:04]} 44. Rg1 {[%clk 0:00:13]}  g2 {[%clk 0:00:04]} 45. Rf3 {[%clk 0:00:13]}  b4+ {[%clk 0:00:04]} 46. cxb4 {[%clk 0:00:12]}  Kxh5 {[%clk 0:00:03]} 47. Rg3 {[%clk 0:00:13]}  Kh4 {[%clk 0:00:03]} 48. R3xg2 {[%clk 0:00:12]}  Re3+ {[%clk 0:00:02]} 49. Kxa4 {[%clk 0:00:12]}  Rh3 {[%clk 0:00:00]} 50. Rg8 {[%clk 0:00:12]} 1-0


[Site "https://www.chess.com"]

[Event "Titled Tuesday Blitz May 9 Early 2023"]
[White "Samaganova, Aleksandra"]
[Black "Goldin, Alexander"]
[WhiteFideId "13800221"]
[BlackFideId "2019540"]
[WhiteElo "1858"]
[BlackElo "2662"]
[Result "1-0"]
[Round "02"]
[TimeControl "180+2"]
[Date "2023.05.09"]
[WhiteClock "0:00:12"]
[BlackClock "0:00:15"]

1. c4 {[%clk 0:03:00]}  e6 {[%clk 0:02:51]} 2. Nc3 {[%clk 0:02:59]}  d5 {[%clk 0:02:51]} 3. e3 {[%clk 0:02:54]}  Nf6 {[%clk 0:02:51]} 4. Nf3 {[%clk 0:02:53]}  a6 {[%clk 0:02:49]} 5. b3 {[%clk 0:02:49]}  b6 {[%clk 0:02:45]} 6. Bb2 {[%clk 0:02:48]}  Bb7 {[%clk 0:02:46]} 7. d4 {[%clk 0:02:44]}  Bd6 {[%clk 0:02:44]} 8. Bd3 {[%clk 0:02:43]}  O-O {[%clk 0:02:39]} 9. O-O {[%clk 0:02:43]}  Nbd7 {[%clk 0:02:39]} 10. Re1 {[%clk 0:02:43]}  Ne4 {[%clk 0:02:38]} 11. Bc2 {[%clk 0:02:27]}  f5 {[%clk 0:02:33]} 12. Nxe4 {[%clk 0:02:12]}  fxe4 {[%clk 0:02:24]} 13. Ne5 {[%clk 0:02:08]}  Bxe5 {[%clk 0:01:49]} 14. dxe5 {[%clk 0:02:01]}  Qh4 {[%clk 0:01:38]} 15. g3 {[%clk 0:01:45]}  Qe7 {[%clk 0:01:36]} 16. Qg4 {[%clk 0:01:22]}  Qf7 {[%clk 0:01:22]} 17. Re2 {[%clk 0:01:14]}  Rae8 {[%clk 0:01:16]} 18. Rd1 {[%clk 0:01:00]}  h5 {[%clk 0:01:14]} 19. Qg5 {[%clk 0:00:49]}  Qf3 {[%clk 0:01:13]} 20. Rdd2 {[%clk 0:00:40]}  Rf5 {[%clk 0:01:01]} 21. Qh4 {[%clk 0:00:32]}  Nf8 {[%clk 0:00:57]} 22. Bd1 {[%clk 0:00:26]}  Ng6 {[%clk 0:00:55]} 23. Qh3 {[%clk 0:00:26]}  Rg5 {[%clk 0:00:36]} 24. Re1 {[%clk 0:00:24]}  Qf7 {[%clk 0:00:36]} 25. Bxh5 {[%clk 0:00:18]}  c5 {[%clk 0:00:34]} 26. cxd5 {[%clk 0:00:17]}  exd5 {[%clk 0:00:32]} 27. Bxg6 {[%clk 0:00:15]}  Rxg6 {[%clk 0:00:27]} 28. Red1 {[%clk 0:00:13]}  Rf8 {[%clk 0:00:24]} 29. Qg2 {[%clk 0:00:09]}  Rh6 {[%clk 0:00:22]} 30. Bc3 {[%clk 0:00:05]}  a5 {[%clk 0:00:21]} 31. a3 {[%clk 0:00:05]}  Qe6 {[%clk 0:00:17]} 32. b4 {[%clk 0:00:05]}  a4 {[%clk 0:00:15]} 33. bxc5 {[%clk 0:00:05]}  bxc5 {[%clk 0:00:15]} 34. Rb1 {[%clk 0:00:05]}  Bc6 {[%clk 0:00:16]} 35. Rb6 {[%clk 0:00:04]}  Qf5 {[%clk 0:00:11]} 36. Rdb2 {[%clk 0:00:04]}  Qg4 {[%clk 0:00:10]} 37. Be1 {[%clk 0:00:03]}  Qd1 {[%clk 0:00:10]} 38. Rb1 {[%clk 0:00:03]}  Qd3 {[%clk 0:00:10]} 39. R6b2 {[%clk 0:00:03]}  Qa6 {[%clk 0:00:09]} 40. Qf1 {[%clk 0:00:03]}  Qc8 {[%clk 0:00:09]} 41. Qg2 {[%clk 0:00:03]}  Rh5 {[%clk 0:00:08]} 42. Rb6 {[%clk 0:00:03]}  Qe6 {[%clk 0:00:07]} 43. h4 {[%clk 0:00:04]}  Rhf5 {[%clk 0:00:07]} 44. Rb8 {[%clk 0:00:03]}  Kh7 {[%clk 0:00:05]} 45. Rxf8 {[%clk 0:00:03]}  Rxf8 {[%clk 0:00:06]} 46. h5 {[%clk 0:00:03]}  Rf5 {[%clk 0:00:06]} 47. Qh3 {[%clk 0:00:03]}  Qxe5 {[%clk 0:00:06]} 48. g4 {[%clk 0:00:03]}  Rg5 {[%clk 0:00:05]} 49. Qg3 {[%clk 0:00:03]}  Qe6 {[%clk 0:00:04]} 50. Kf1 {[%clk 0:00:03]}  Rxg4 {[%clk 0:00:04]} 51. Qh2 {[%clk 0:00:03]}  Rg5 {[%clk 0:00:04]} 52. h6 {[%clk 0:00:03]}  Qxh6 {[%clk 0:00:02]} 53. Qxh6+ {[%clk 0:00:03]}  Kxh6 {[%clk 0:00:03]} 54. Rb6 {[%clk 0:00:03]}  Rg6 {[%clk 0:00:03]} 55. Ra6 {[%clk 0:00:03]}  Re6 {[%clk 0:00:03]} 56. Ra5 {[%clk 0:00:03]}  Kg6 {[%clk 0:00:03]} 57. Bc3 {[%clk 0:00:03]}  Kf5 {[%clk 0:00:04]} 58. Ke2 {[%clk 0:00:03]}  g6 {[%clk 0:00:04]} 59. Rxc5 {[%clk 0:00:03]}  Kg4 {[%clk 0:00:03]} 60. Bb4 {[%clk 0:00:03]}  g5 {[%clk 0:00:03]} 61. Rc1 {[%clk 0:00:03]}  Kh3 {[%clk 0:00:03]} 62. Rg1 {[%clk 0:00:04]}  Kh4 {[%clk 0:00:03]} 63. Bc3 {[%clk 0:00:03]}  g4 {[%clk 0:00:04]} 64. Ba5 {[%clk 0:00:03]}  Kg5 {[%clk 0:00:04]} 65. Bd8+ {[%clk 0:00:03]}  Kf5 {[%clk 0:00:04]} 66. Bc7 {[%clk 0:00:03]}  Bb5+ {[%clk 0:00:05]} 67. Kd2 {[%clk 0:00:03]}  Rc6 {[%clk 0:00:05]} 68. Bf4 {[%clk 0:00:02]}  Bd3 {[%clk 0:00:05]} 69. Rh1 {[%clk 0:00:02]}  Rb6 {[%clk 0:00:06]} 70. Rh5+ {[%clk 0:00:02]}  Ke6 {[%clk 0:00:05]} 71. Rh6+ {[%clk 0:00:03]}  Kf5 {[%clk 0:00:05]} 72. Rxb6 {[%clk 0:00:04]}  Bc4 {[%clk 0:00:04]} 73. Rb4 {[%clk 0:00:04]}  Bb3 {[%clk 0:00:05]} 74. Ke2 {[%clk 0:00:04]}  Ke6 {[%clk 0:00:04]} 75. Bg3 {[%clk 0:00:05]}  Kd7 {[%clk 0:00:05]} 76. Kd2 {[%clk 0:00:05]}  Kc6 {[%clk 0:00:06]} 77. Kc3 {[%clk 0:00:06]}  Kc5 {[%clk 0:00:07]} 78. Rb8 {[%clk 0:00:06]}  Bc4 {[%clk 0:00:07]} 79. Rc8+ {[%clk 0:00:06]}  Kb6 {[%clk 0:00:07]} 80. Rg8 {[%clk 0:00:07]}  Kb5 {[%clk 0:00:08]} 81. Rxg4 {[%clk 0:00:07]}  Kc5 {[%clk 0:00:09]} 82. Rg8 {[%clk 0:00:07]}  Kc6 {[%clk 0:00:10]} 83. Rc8+ {[%clk 0:00:07]}  Kd7 {[%clk 0:00:11]} 84. Ra8 {[%clk 0:00:07]}  Kc6 {[%clk 0:00:11]} 85. Rxa4 {[%clk 0:00:07]}  Kb5 {[%clk 0:00:12]} 86. Ra8 {[%clk 0:00:08]}  Kc5 {[%clk 0:00:12]} 87. Rb8 {[%clk 0:00:08]}  Kc6 {[%clk 0:00:13]} 88. a4 {[%clk 0:00:08]}  Kc5 {[%clk 0:00:14]} 89. a5 {[%clk 0:00:09]}  Ba6 {[%clk 0:00:13]} 90. Rb4 {[%clk 0:00:09]}  Kc6 {[%clk 0:00:13]} 91. Rb6+ {[%clk 0:00:09]}  Kc5 {[%clk 0:00:13]} 92. Rxa6 {[%clk 0:00:10]}  Kb5 {[%clk 0:00:14]} 93. Rf6 {[%clk 0:00:10]}  Kxa5 {[%clk 0:00:15]} 94. Rf5 {[%clk 0:00:10]}  Kb5 {[%clk 0:00:16]} 95. Rxd5+ {[%clk 0:00:11]}  Kc6 {[%clk 0:00:17]} 96. Rd4 {[%clk 0:00:12]}  Kc5 {[%clk 0:00:17]} 97. Rxe4 {[%clk 0:00:12]}  Kd5 {[%clk 0:00:15]} 98. Rd4+ {[%clk 0:00:12]} 1-0


[Site "https://www.chess.com"]

[Event "Titled Tuesday Blitz May 9 Early 2023"]
[White "Sailer, Mike"]
[Black "Khumalo, Keith"]
[WhiteFideId "2012901"]
[BlackFideId "14319470"]
[WhiteElo "2109"]
[BlackElo "2056"]
[Result "0-1"]
[Round "02"]
[TimeControl "180+2"]
[Date "2023.05.09"]
[WhiteClock "0:00:07"]
[BlackClock "0:01:38"]

1. d4 {[%clk 0:02:59]}  Nf6 {[%clk 0:02:55]} 2. Bg5 {[%clk 0:02:59]}  c5 {[%clk 0:02:53]} 3. Bxf6 {[%clk 0:02:56]}  exf6 {[%clk 0:02:53]} 4. Nc3 {[%clk 0:02:56]}  cxd4 {[%clk 0:02:51]} 5. Qxd4 {[%clk 0:02:56]}  Nc6 {[%clk 0:02:51]} 6. Qa4 {[%clk 0:02:50]}  d5 {[%clk 0:02:44]} 7. O-O-O {[%clk 0:02:49]}  Be6 {[%clk 0:02:41]} 8. Nf3 {[%clk 0:02:45]}  Be7 {[%clk 0:02:38]} 9. Nxd5 {[%clk 0:02:33]}  Bxd5 {[%clk 0:02:38]} 10. e4 {[%clk 0:02:33]}  O-O {[%clk 0:02:27]} 11. exd5 {[%clk 0:02:30]}  Ne5 {[%clk 0:02:24]} 12. Nxe5 {[%clk 0:02:01]}  fxe5 {[%clk 0:02:21]} 13. Bd3 {[%clk 0:02:00]}  a6 {[%clk 0:02:19]} 14. Qe4 {[%clk 0:01:55]}  f5 {[%clk 0:02:17]} 15. Qxe5 {[%clk 0:01:52]}  Kh8 {[%clk 0:02:16]} 16. Bxf5 {[%clk 0:01:45]}  Bf6 {[%clk 0:02:14]} 17. Qe4 {[%clk 0:01:38]}  Qb6 {[%clk 0:02:13]} 18. c3 {[%clk 0:01:31]}  Rae8 {[%clk 0:02:11]} 19. Qc2 {[%clk 0:01:21]}  g6 {[%clk 0:02:05]} 20. Be4 {[%clk 0:01:13]}  Bg5+ {[%clk 0:02:04]} 21. Kb1 {[%clk 0:01:11]}  Rxf2 {[%clk 0:02:05]} 22. Qxf2 {[%clk 0:00:59]}  Qxf2 {[%clk 0:02:03]} 23. Bf3 {[%clk 0:00:53]}  Qb6 {[%clk 0:01:59]} 24. d6 {[%clk 0:00:52]}  Rd8 {[%clk 0:01:59]} 25. d7 {[%clk 0:00:52]}  Qc7 {[%clk 0:01:59]} 26. Bg4 {[%clk 0:00:51]}  h5 {[%clk 0:01:51]} 27. Bh3 {[%clk 0:00:52]}  Bf6 {[%clk 0:01:51]} 28. Rhf1 {[%clk 0:00:46]}  Kg7 {[%clk 0:01:51]} 29. Rfe1 {[%clk 0:00:31]}  Qxh2 {[%clk 0:01:47]} 30. Re6 {[%clk 0:00:27]}  g5 {[%clk 0:01:46]} 31. Bf5 {[%clk 0:00:27]}  Qxg2 {[%clk 0:01:43]} 32. Rde1 {[%clk 0:00:25]}  Qf3 {[%clk 0:01:40]} 33. Be4 {[%clk 0:00:14]}  Qg4 {[%clk 0:01:38]} 34. Bxb7 {[%clk 0:00:08]}  Rxd7 {[%clk 0:01:38]} 35. Bxa6 {[%clk 0:00:07]}  Rd1+ {[%clk 0:01:38]} 36. Rxd1 {[%clk 0:00:07]}  Qxd1# {[%clk 0:01:38]} 0-1


[Site "https://www.chess.com"]

[Event "Titled Tuesday Blitz May 9 Early 2023"]
[White "Simonian, Hrair"]
[Black "Aung Thant Zin"]
[WhiteFideId "13302337"]
[BlackFideId "13000063"]
[WhiteElo "2447"]
[BlackElo "2278"]
[Result "1-0"]
[Round "02"]
[TimeControl "180+2"]
[Date "2023.05.09"]
[WhiteClock "0:00:19"]
[BlackClock "0:00:00"]

1. e4 {[%clk 0:03:00]}  c5 {[%clk 0:02:59]} 2. Nc3 {[%clk 0:03:00]}  a6 {[%clk 0:02:57]} 3. g3 {[%clk 0:02:59]}  b5 {[%clk 0:02:57]} 4. Bg2 {[%clk 0:03:00]}  Bb7 {[%clk 0:02:57]} 5. Nge2 {[%clk 0:03:01]}  e6 {[%clk 0:02:56]} 6. d4 {[%clk 0:03:01]}  cxd4 {[%clk 0:02:54]} 7. Nxd4 {[%clk 0:03:02]}  Nf6 {[%clk 0:02:50]} 8. a3 {[%clk 0:03:01]}  d6 {[%clk 0:02:41]} 9. O-O {[%clk 0:03:01]}  Qc7 {[%clk 0:02:41]} 10. Re1 {[%clk 0:03:01]}  Nbd7 {[%clk 0:02:40]} 11. a4 {[%clk 0:03:00]}  b4 {[%clk 0:02:39]} 12. Na2 {[%clk 0:03:00]}  Qb6 {[%clk 0:02:04]} 13. a5 {[%clk 0:02:28]}  Qxa5 {[%clk 0:01:45]} 14. e5 {[%clk 0:02:28]}  Bxg2 {[%clk 0:01:42]} 15. exf6 {[%clk 0:02:28]}  Bb7 {[%clk 0:01:39]} 16. Nb3 {[%clk 0:01:07]}  Qd5 {[%clk 0:01:29]} 17. Qxd5 {[%clk 0:01:06]}  Bxd5 {[%clk 0:01:29]} 18. fxg7 {[%clk 0:01:02]}  Bxg7 {[%clk 0:01:28]} 19. Nxb4 {[%clk 0:01:03]}  Bb7 {[%clk 0:01:21]} 20. Na5 {[%clk 0:01:02]}  Bc8 {[%clk 0:01:10]} 21. c3 {[%clk 0:00:56]}  O-O {[%clk 0:01:07]} 22. Bf4 {[%clk 0:00:52]}  d5 {[%clk 0:00:53]} 23. Nac6 {[%clk 0:00:47]}  Re8 {[%clk 0:00:49]} 24. Nxd5 {[%clk 0:00:42]}  Bb7 {[%clk 0:00:39]} 25. Nde7+ {[%clk 0:00:32]}  Kh8 {[%clk 0:00:37]} 26. Na5 {[%clk 0:00:32]}  Rxe7 {[%clk 0:00:31]} 27. Nxb7 {[%clk 0:00:32]}  Nb6 {[%clk 0:00:31]} 28. Nc5 {[%clk 0:00:27]}  Nc4 {[%clk 0:00:29]} 29. b3 {[%clk 0:00:25]}  Nb2 {[%clk 0:00:22]} 30. Bd6 {[%clk 0:00:23]}  Ree8 {[%clk 0:00:15]} 31. Be5 {[%clk 0:00:24]}  f6 {[%clk 0:00:11]} 32. Bd4 {[%clk 0:00:23]}  e5 {[%clk 0:00:11]} 33. Be3 {[%clk 0:00:23]}  Bf8 {[%clk 0:00:12]} 34. Re2 {[%clk 0:00:21]}  Bxc5 {[%clk 0:00:10]} 35. Bxc5 {[%clk 0:00:22]}  Nd3 {[%clk 0:00:10]} 36. Be3 {[%clk 0:00:22]}  Rec8 {[%clk 0:00:08]} 37. c4 {[%clk 0:00:22]}  e4 {[%clk 0:00:08]} 38. Bd4 {[%clk 0:00:22]}  Kg7 {[%clk 0:00:07]} 39. Rxe4 {[%clk 0:00:21]}  Nb4 {[%clk 0:00:07]} 40. Re7+ {[%clk 0:00:21]}  Kg6 {[%clk 0:00:06]} 41. Re6 {[%clk 0:00:21]}  Rc6 {[%clk 0:00:07]} 42. Rae1 {[%clk 0:00:18]}  Rac8 {[%clk 0:00:05]} 43. Bc3 {[%clk 0:00:18]}  Nc2 {[%clk 0:00:04]} 44. R1e2 {[%clk 0:00:18]}  Rxe6 {[%clk 0:00:03]} 45. Rxe6 {[%clk 0:00:19]}  Rf8 {[%clk 0:00:03]} 46. Rxa6 {[%clk 0:00:19]}  Rd8 {[%clk 0:00:01]} 47. Rxf6+ {[%clk 0:00:18]}  Kg5 {[%clk 0:00:01]} 48. h4+ {[%clk 0:00:18]}  Kg4 {[%clk 0:00:00]} 49. Kg2 {[%clk 0:00:19]} 1-0


[Site "https://www.chess.com"]